[Event "41st Jacques-Lemans-Open 2022"]
[Site "St. Veit/Glan"]
[Date "2022.07.16"]
[Round "9.34"]
[White "Toefferl, Heimo"]
[Black "Kempe, Caius Emilian"]
[Result "1/2-1/2"]
[ECO "D15"]
[WhiteElo "2003"]
[BlackElo "1877"]
[Annotator "ChessBase"]
[PlyCount "69"]
[EventDate "2022.07.09"]
[EventType "swiss"]
[EventCountry "AUT"]
[SourceTitle "playchess.com"]
[Source "ChessBase"]
[SourceQuality "1"]
[TimeControl "40/5400+30:1800+30"]

1. d4 {[%emt 0:00:06]} d5 {[%emt 0:00:04]} 2. c4 {[%emt 0:00:07]} c6 {[%emt 0:00:04]} 3. Nc3 {[%emt 0:00:12]} Nf6 {[%emt 0:00:07]} 4. Nf3 {[%emt 0:00:29]} a6 {[%emt 0:00:07]} 5. e3 {[%emt 0:01:12]} b5 {[%emt 0:00:28]} 6. b3 {[%emt 0:01:45]} Bf5 {[%emt 0:00:41]} 7. Be2 {[%emt 0:01:23]} e6 {[%emt 0:00:51]} 8. O-O {[%emt 0:00:23]} Bd6 {[%emt 0:01:15]} 9. h3 {[%emt 0:02:16]} O-O {[%emt 0:00:43]} 10. Bb2 {[%emt 0:01:51]} h6 {[%emt 0:02:31]} 11. Rc1 {[%emt 0:08:11]} Nbd7 {[%emt 0:00:39]} 12. Nd2 {[%emt 0:03:11]} Rc8 {[%emt 0:04:08]} 13. f4 {[%emt 0:10:06]} Bb8 {[%emt 0:01:41]} 14. Qe1 {[%emt 0:07:35]} Bh7 {[%emt 0:06:16]} 15. Nf3 {[%emt 0:05:17]} Ne4 {[%emt 0:01:46]} 16. Nxe4 {[%emt 0:00:53]} Bxe4 {[%emt 0:00:16]} 17. Ne5 {[%emt 0:03:19]} Nxe5 {[%emt 0:04:13]} 18. dxe5 {[%emt 0:02:43]} bxc4 {[%emt 0:04:07]} 19. bxc4 {[%emt 0:00:37]} Qb6 {[%emt 0:02:44]} 20. Qd2 {[%emt 0:01:46]} c5 {[%emt 0:00:25]} 21. Bc3 {[%emt 0:03:23]} Ba7 {[%emt 0:00:53]} 22. Ba5 {[%emt 0:01:22]} Qc6 {[%emt 0:00:09]} 23. Bf3 {[%emt 0:01:42]} Bxf3 {[%emt 0:03:31]} 24. Rxf3 {[%emt 0:04:38]} Qa4 {[%emt 0:01:09]} 25. f5 {[%emt 0:00:52]} Bb8 {[%emt 0:12:52]} 26. Bc3 {[%emt 0:02:05]} d4 {[%emt 0:02:34]} 27. exd4 {[%emt 0:00:49]} cxd4 {[%emt 0:00:01]} 28. Bxd4 {[%emt 0:01:34]} Rxc4 {[%emt 0:01:30]} 29. Rxc4 {[%emt 0:00:24]} Qxc4 {[%emt 0:00:01]} 30. fxe6 {[%emt 0:06:42]} Qxe6 {[%emt 0:00:35]} 31. Bc5 {[%emt 0:01:07]} Rc8 {[%emt 0:01:47]} 32. Bd6 {[%emt 0:01:29]} Ba7+ {[%emt 0:04:19]} 33. Kh1 {[%emt 0:01:06]} Qc4 {[%emt 0:00:19]} 34. Kh2 {[%emt 0:03:34]} Qc1 {[%emt 0:01:52]} 35. Qxc1 {[%emt 0:00:20]} 1/2-1/2

[Event "41st Jacques-Lemans-Open 2022"]
[Site "St. Veit/Glan"]
[Date "2022.07.16"]
[Round "9.35"]
[White "Holub, Adam"]
[Black "Missethan, Michael"]
[Result "1/2-1/2"]
[ECO "D35"]
[WhiteElo "1817"]
[BlackElo "1991"]
[Annotator "ChessBase"]
[PlyCount "42"]
[EventDate "2022.07.09"]
[EventType "swiss"]
[EventCountry "AUT"]
[SourceTitle "playchess.com"]
[Source "ChessBase"]
[SourceQuality "1"]
[TimeControl "40/5400+30:1800+30"]

1. d4 {[%emt 0:00:35]} d5 {[%emt 0:00:05]} 2. c4 {[%emt 0:00:12]} e6 {[%emt 0:00:05]} 3. Nc3 {[%emt 0:00:43]} Nf6 {[%emt 0:00:05]} 4. cxd5 {[%emt 0:01:24]} exd5 {[%emt 0:00:04]} 5. Bg5 {[%emt 0:00:15]} Be7 {[%emt 0:01:00]} 6. e3 {[%emt 0:01:12]} c6 {[%emt 0:00:49]} 7. Qc2 {[%emt 0:01:18]} Nbd7 {[%emt 0:02:24]} 8. Bd3 {[%emt 0:01:03]} Nh5 {[%emt 0:02:03]} 9. Bxe7 {[%emt 0:03:06]} Qxe7 {[%emt 0:00:03]} 10. Nge2 {[%emt 0:02:21]} g6 {[%emt 0:01:33]} 11. O-O {[%emt 0:09:17]} Nb6 {[%emt 0:02:30]} 12. b3 {[%emt 0:07:51]} Ng7 {[%emt 0:01:53]} 13. Rfc1 {[%emt 0:06:32]} Bf5 {[%emt 0:02:40]} 14. Nf4 {[%emt 0:09:55]} O-O {[%emt 0:03:47]} 15. Nce2 {[%emt 0:03:21]} Nc8 {[%emt 0:06:44]} 16. Ng3 {[%emt 0:07:02]} Bxd3 {[%emt 0:01:37]} 17. Nxd3 {[%emt 0:00:11]} Ne6 {[%emt 0:03:45]} 18. Nc5 {[%emt 0:03:17]} Nd6 {[%emt 0:03:05]} 19. Re1 {[%emt 0:04:31]} Rfe8 {[%emt 0:04:11]} 20. Rac1 {[%emt 0:01:36]} Kg7 {[%emt 0:04:44]} 21. Qb2 {[%emt 0:02:32]} f6 {[%emt 0:10:47]} 1/2-1/2

[Event "41st Jacques-Lemans-Open 2022"]
[Site "St. Veit/Glan"]
[Date "2022.07.16"]
[Round "9.36"]
[White "Hofbauer, Peter"]
[Black "Praxmarer, Christian"]
[Result "0-1"]
[ECO "C01"]
[WhiteElo "1986"]
[BlackElo "1906"]
[Annotator "ChessBase"]
[PlyCount "110"]
[EventDate "2022.07.09"]
[EventType "swiss"]
[EventCountry "AUT"]
[SourceTitle "playchess.com"]
[Source "ChessBase"]
[SourceQuality "1"]
[TimeControl "40/5400+30:1800+30"]

1. e4 {[%emt 0:00:03]} e6 {[%emt 0:00:21]} 2. d4 {[%emt 0:00:25]} d5 {[%emt 0:00:06]} 3. exd5 {[%emt 0:00:14]} exd5 {[%emt 0:00:08]} 4. c4 {[%emt 0:00:09]} Bb4+ {[%emt 0:04:15]} 5. Nc3 {[%emt 0:04:02]} Qe7+ {[%emt 0:08:04]} 6. Qe2 {[%emt 0:08:19]} dxc4 {[%emt 0:05:30]} 7. Qxe7+ {[%emt 0:01:27]} Nxe7 {[%emt 0:01:51]} 8. Bxc4 {[%emt 0:00:28]} c6 {[%emt 0:08:47]} 9. Nf3 {[%emt 0:01:35]} Nd7 {[%emt 0:13:21]} 10. O-O {[%emt 0:02:36]} O-O {[%emt 0:01:13]} 11. a3 {[%emt 0:03:25]} Ba5 {[%emt 0:03:03]} 12. b4 {[%emt 0:01:02]} Bb6 {[%emt 0:07:53]} 13. Re1 {[%emt 0:03:29]} Nf5 {[%emt 0:03:57]} 14. Rd1 {[%emt 0:07:37]} Nf6 {[%emt 0:02:09]} 15. Bg5 {[%emt 0:04:11]} Nd6 {[%emt 0:03:01]} 16. Bb3 {[%emt 0:02:25]} Bg4 {[%emt 0:04:57]} 17. Bxf6 {[%emt 0:05:57]} gxf6 {[%emt 0:00:49]} 18. d5 {[%emt 0:01:30]} c5 {[%emt 0:01:24]} 19. Na4 {[%emt 0:05:01]} c4 {[%emt 0:01:34]} 20. Nxb6 {[%emt 0:01:58]} axb6 {[%emt 0:00:02]} 21. Bc2 {[%emt 0:00:19]} b5 {[%emt 0:01:54]} 22. Rd4 {[%emt 0:01:30]} Bxf3 {[%emt 0:04:56]} 23. gxf3 {[%emt 0:00:58]} Rfe8 {[%emt 0:01:09]} 24. Kf1 {[%emt 0:04:08]} Re5 {[%emt 0:00:36]} 25. f4 {[%emt 0:10:28]} Rh5 {[%emt 0:02:04]} 26. Kg2 {[%emt 0:01:40]} f5 {[%emt 0:02:01]} 27. Bd1 {[%emt 0:09:07]} Rh6 {[%emt 0:00:37]} 28. Bf3 {[%emt 0:00:28]} Kg7 {[%emt 0:00:31]} 29. h3 {[%emt 0:00:55]} Kf6 {[%emt 0:00:57]} 30. Kh2 {[%emt 0:00:56]} Rg6 {[%emt 0:00:10]} 31. Rd2 {[%emt 0:03:16]} Rgg8 {[%emt 0:04:19]} 32. Re2 {[%emt 0:02:22]} Ra6 {[%emt 0:02:06]} 33. Re3 {[%emt 0:01:01]} Rga8 {[%emt 0:00:45]} 34. Bd1 {[%emt 0:01:28]} Re8 {[%emt 0:01:13]} 35. Rxe8 {[%emt 0:02:17]} Nxe8 {[%emt 0:00:00]} 36. Kg2 {[%emt 0:02:37]} Nd6 {[%emt 0:00:30]} 37. Kf3 {[%emt 0:01:03]} Ne4 {[%emt 0:06:37]} 38. Ke3 {[%emt 0:00:53]} Ke7 {[%emt 0:00:54]} 39. Bf3 {[%emt 0:00:29]} Nf6 {[%emt 0:00:35]} 40. Kd4 {[%emt 0:00:25]} Kd6 {[%emt 0:00:24]} 41. Ra2 {[%emt 0:32:44]} Ra8 {[%emt 0:30:15]} 42. Ra1 {[%emt 0:01:17]} h5 {[%emt 0:01:38]} 43. Ra2 {[%emt 0:00:56]} h4 {[%emt 0:00:06]} 44. Ra1 {[%emt 0:00:20]} Nd7 {[%emt 0:00:00]} 45. Bg2 {[%emt 0:00:00]} Nb6 {[%emt 0:00:00]} 46. Ra2 {[%emt 0:00:00]} Re8 {[%emt 0:00:00]} 47. Bf3 {[%emt 0:00:00]} Re1 {[%emt 0:00:00]} 48. Bh5 {[%emt 0:00:00]} Re4+ {[%emt 0:00:00]} 49. Kc3 {[%emt 0:00:00]} Nxd5+ {[%emt 0:00:00]} 50. Kd2 {[%emt 0:00:00]} Rd4+ {[%emt 0:00:00]} 51. Ke1 {[%emt 0:00:00]} Nxf4 {[%emt 0:00:00]} 52. Bxf7 {[%emt 0:00:00]} Nxh3 {[%emt 0:00:00]} 53. Be8 {[%emt 0:00:00]} Re4+ {[%emt 0:00:00]} 54. Re2 {[%emt 0:00:00]} Rxe2+ {[%emt 0:00:00]} 55. Kxe2 {[%emt 0:00:00]} Nf4+ 0-1